Workbook

Sheet Tjedne prodajne aktivnosti
B1: TJEDNE PRODAJNE AKTIVNOSTI | I1: PRODAVAČ | J1: Naziv | L1: ZAVRŠETAK TJEDNA | M1: Datum
I3: MJESTO | J3: Mjesto | L3: DANAŠNJI DATUM | M3: Datum
B5: DANI | C5: U PRODAJNOM UREDU | D5: IZVAN UREDA | E5: POSJETI U UREDU | F5: VANJSKI POZIVI | G5: EVIDENTIRANJE TELEFONSKIH POZIVA | H5: NOVI RAČUN TELEFON | I5: SOBE ZA GOSTE | J5: HRANA I PIĆE | K5: SASTANAK NAJAM SOBE | L5: OSTALO* | M5: UKUPNO
B6: Ponedjeljak | C6: 14.00 kn | D6: 23.00 kn | E6: 4.00 kn | F6: 45.00 kn | G6: 22.00 kn | H6: 2.00 kn | I6: 100.00 kn | J6: 0.00 kn | K6: 0.00 kn | L6: 0.00 kn | M6: =SUM(Aktivnost[[#This Row],[U PRODAJNOM UREDU]:[OSTALO*]]) -> 210.00 kn
B7: Utorak | C7: 23.00 kn | D7: 76.00 kn | E7: 10.00 kn | F7: 50.00 kn | G7: 54.00 kn | H7: 45.00 kn | I7: 80.00 kn | J7: 0.00 kn | K7: 0.00 kn | L7: 0.00 kn | M7: =SUM(Aktivnost[[#This Row],[U PRODAJNOM UREDU]:[OSTALO*]]) -> 338.00 kn
B8: Srijeda | C8: 4.00 kn | D8: 130.00 kn | E8: 11.00 kn | F8: 33.00 kn | G8: 67.00 kn | H8: 65.00 kn | I8: 400.00 kn | J8: 0.00 kn | K8: 0.00 kn | L8: 0.00 kn | M8: =SUM(Aktivnost[[#This Row],[U PRODAJNOM UREDU]:[OSTALO*]]) -> 710.00 kn
B9: Četvrtak | C9: 102.00 kn | D9: 40.00 kn | E9: 18.00 kn | F9: 0.00 kn | G9: 86.00 kn | H9: 82.00 kn | I9: 97.00 kn | J9: 0.00 kn | K9: 0.00 kn | L9: 0.00 kn | M9: =SUM(Aktivnost[[#This Row],[U PRODAJNOM UREDU]:[OSTALO*]]) -> 425.00 kn
B10: Petak | C10: 33.00 kn | D10: 55.00 kn | E10: 22.00 kn | F10: 49.00 kn | G10: 143.00 kn | H10: 26.00 kn | I10: 50.00 kn | J10: 0.00 kn | K10: 0.00 kn | L10: 0.00 kn | M10: =SUM(Aktivnost[[#This Row],[U PRODAJNOM UREDU]:[OSTALO*]]) -> 378.00 kn
B11: Subota | C11: 0.00 kn | D11: 0.00 kn | E11: 0.00 kn | F11: 0.00 kn | G11: 0.00 kn | H11: 0.00 kn | I11: 0.00 kn | J11: 0.00 kn | K11: 0.00 kn | L11: 0.00 kn | M11: =SUM(Aktivnost[[#This Row],[U PRODAJNOM UREDU]:[OSTALO*]]) -> 0.00 kn
B12: Nedjelja | C12: 0.00 kn | D12: 0.00 kn | E12: 0.00 kn | F12: 0.00 kn | G12: 0.00 kn | H12: 0.00 kn | I12: 0.00 kn | J12: 0.00 kn | K12: 0.00 kn | L12: 0.00 kn | M12: =SUM(Aktivnost[[#This Row],[U PRODAJNOM UREDU]:[OSTALO*]]) -> 0.00 kn
B13: Ukupno | C13: =SUBTOTAL(109,Aktivnost[U PRODAJNOM UREDU]) -> 176.00 kn | D13: =SUBTOTAL(109,Aktivnost[IZVAN UREDA]) -> 324.00 kn | E13: =SUBTOTAL(109,Aktivnost[POSJETI U UREDU]) -> 65.00 kn | F13: =SUBTOTAL(109,Aktivnost[VANJSKI POZIVI]) -> 177.00 kn | G13: =SUBTOTAL(109,Aktivnost[EVIDENTIRANJE TELEFONSKIH POZIVA]) -> 372.00 kn | H13: =SUBTOTAL(109,Aktivnost[NOVI RAČUN TELEFON]) -> 220.00 kn | I13: =SUBTOTAL(105,Aktivnost[SOBE ZA GOSTE]) -> 0.00 kn | J13: =SUBTOTAL(109,Aktivnost[HRANA I PIĆE]) -> 0.00 kn | K13: =SUBTOTAL(109,Aktivnost[SASTANAK NAJAM SOBE]) -> 0.00 kn | L13: =SUBTOTAL(109,Aktivnost[OSTALO*]) -> 0.00 kn | M13: =SUBTOTAL(109,Aktivnost[UKUPNO]) -> 2,061.00 kn
B15: CILJ | C15: 200.00 kn | D15: 400.00 kn | E15: 300.00 kn | F15: 65.00 kn | G15: 500.00 kn | H15: 300.00 kn | I15: 400.00 kn | J15: 600.00 kn | K15: 300.00 kn | L15: 300.00 kn | M15: =SUM(C15:L15) -> 3,365.00 kn
B16: ODSTUPANJE | C16: =SUM(Aktivnost[[#Totals],[U PRODAJNOM UREDU]]-C15) -> -24.00 kn | D16: =SUM(Aktivnost[[#Totals],[IZVAN UREDA]]-D15) -> -76.00 kn | E16: =SUM(Aktivnost[[#Totals],[POSJETI U UREDU]]-E15) -> -235.00 kn | F16: =SUM(Aktivnost[[#Totals],[POSJETI U UREDU]]-F15) -> 0.00 kn | G16: =SUM(Aktivnost[[#Totals],[EVIDENTIRANJE TELEFONSKIH POZIVA]]-G15) -> -128.00 kn | H16: =SUM(Aktivnost[[#Totals],[NOVI RAČUN TELEFON]]-H15) -> -80.00 kn | I16: =SUM(Aktivnost[[#Totals],[SOBE ZA GOSTE]]-I15) -> -400.00 kn | J16: =SUM(Aktivnost[[#Totals],[HRANA I PIĆE]]-J15) -> -600.00 kn | K16: =SUM(Aktivnost[[#Totals],[SASTANAK NAJAM SOBE]]-K15) -> -300.00 kn | L16: =SUM(Aktivnost[[#Totals],[OSTALO*]]-L15) -> -300.00 kn | M16: =SUM(C16:L16) -> -2,143.00 kn
B18: *OBJAŠNJENJE
B20: Odobrenje
